bitfinex/quotes_BTCUSD_20230115
["timestamp","ask_amount","ask_price","bid_price","bid_amount"]
[1673757235571,0.0801,20726.0,20725.0,0.085]
[1673757235834,0.0791,20726.0,20723.0,0.8939513]
[1673757236099,0.0801,20726.0,20725.0,0.085]
[1673757236636,0.0791,20726.0,20724.0,0.43348723]
[1673757236866,0.0791,20726.0,20724.0,0.91600923]
[1673757237705,0.0801,20726.0,20725.0,0.085]
[1673757238481,0.0791,20726.0,20724.0,0.91600923]
[1673757238750,0.0801,20726.0,20725.0,0.49611411]
[1673757238988,0.0791,20726.0,20725.0,0.49611411]
[1673757239227,0.0801,20726.0,20725.0,0.58111411]
[1673757239481,0.08,20726.0,20725.0,0.58111411]
[1673757239725,0.081,20726.0,20725.0,0.58111411]
[1673757239998,0.079,20726.0,20725.0,0.49611411]
[1673757241791,0.079,20726.0,20724.0,0.90636888]
[1673757242054,0.079,20726.0,20725.0,0.491009]
[1673757242267,0.079,20726.0,20725.0,0.812218]
[1673757242517,0.079,20726.0,20725.0,0.491009]
[1673757243775,0.079,20726.0,20725.0,0.812218]
[1673757245035,0.00094918,20727.0,20725.0,1.26457502]
[1673757245283,0.00094918,20727.0,20726.0,0.214798]
[1673757245787,0.00094918,20727.0,20726.0,0.812194]
[1673757246286,0.00194918,20727.0,20726.0,0.897194]
[1673757246543,0.00194918,20727.0,20726.0,1.39838243]
[1673757246544,0.00188432,20727.0,20726.0,1.39838243]
[1673757250309,0.00188432,20727.0,20726.0,1.54239648]
[1673757250562,0.00188432,20727.0,20726.0,2.00618752]
[1673757250823,0.00188432,20727.0,20726.0,2.87140825]
[1673757251082,0.00188432,20727.0,20726.0,2.49074438]
[1673757251337,0.00188432,20727.0,20726.0,2.77337641]
[1673757251843,0.00188432,20727.0,20726.0,2.64673033]
[1673757252098,0.00188432,20727.0,20726.0,2.63516769]
[1673757252362,0.00188432,20727.0,20726.0,2.83710472]
[1673757252618,0.00188432,20727.0,20726.0,2.98125822]
[1673757252878,0.00188432,20727.0,20726.0,2.83710472]
[1673757253628,0.00188432,20727.0,20726.0,2.98127359]
[1673757253845,0.00188432,20727.0,20726.0,2.4908992]
[1673757254067,0.00188432,20727.0,20726.0,2.34673033]
[1673757254568,0.00188432,20727.0,20726.0,2.7180401]
[1673757254789,0.00188432,20727.0,20726.0,2.34661822]
[1673757255343,0.00188432,20727.0,20726.0,2.83653031]
[1673757256107,0.00188432,20727.0,20726.0,2.71236447]
[1673757256358,0.00188432,20727.0,20726.0,2.49616158]
[1673757258421,0.00188432,20727.0,20726.0,2.22245238]
[1673757258681,0.00188432,20727.0,20726.0,2.49657257]
[1673757258948,0.00188432,20727.0,20726.0,2.92454717]
[1673757259501,0.00188432,20727.0,20726.0,2.65042698]
[1673757259692,0.00188432,20727.0,20726.0,2.92458279]
[1673757260698,0.00188432,20727.0,20726.0,2.92461247]
[1673757261204,0.00188432,20727.0,20726.0,2.65042698]
[1673757261455,0.00188432,20727.0,20726.0,2.4966187]
[1673757261673,0.00188432,20727.0,20726.0,2.95739263]
[1673757262480,0.00188432,20727.0,20726.0,2.8132045]
[1673757263292,0.00188432,20727.0,20726.0,2.64086793]
[1673757263472,0.00188432,20727.0,20726.0,2.42466504]
[1673757264479,0.00188432,20727.0,20726.0,2.78522382]
[1673757264740,0.00188432,20727.0,20726.0,3.08522382]
[1673757265005,0.00188432,20727.0,20726.0,3.14735062]
[1673757265258,0.00188432,20727.0,20726.0,2.72466504]
[1673757265517,0.00188432,20727.0,20726.0,3.10722125]
[1673757266042,0.00188432,20727.0,20726.0,2.72466504]
[1673757266259,0.00188432,20727.0,20726.0,2.78522382]
[1673757266799,0.00188432,20727.0,20726.0,3.17952237]
[1673757267048,0.00188432,20727.0,20726.0,2.78522382]
[1673757267293,0.00188432,20727.0,20726.0,2.42466504]
[1673757267539,0.00188432,20727.0,20726.0,2.78522382]
[1673757268817,0.00188432,20727.0,20726.0,3.20376449]
[1673757269076,0.00188432,20727.0,20726.0,2.78522382]
[1673757269580,0.00188432,20727.0,20726.0,3.15617079]
[1673757270089,0.00188432,20727.0,20726.0,2.78522382]
[1673757271115,0.00188432,20727.0,20726.0,3.24403606]
[1673757271870,0.00188432,20727.0,20726.0,3.09980928]
[1673757272380,0.00188432,20727.0,20726.0,2.81137192]
[1673757272604,0.00188432,20727.0,20726.0,2.9556091]
[1673757273327,0.00188432,20727.0,20726.0,2.81137192]
[1673757273839,0.00188432,20727.0,20726.0,3.09980928]
[1673757274637,0.00188432,20727.0,20726.0,2.88347728]
[1673757274865,0.00188432,20727.0,20726.0,2.42466504]
[1673757275116,0.00188432,20727.0,20726.0,3.16222409]
[1673757275371,0.00188432,20727.0,20726.0,2.78522382]
[1673757275623,0.00188432,20727.0,20726.0,2.49678646]
[1673757276871,0.00188432,20727.0,20726.0,3.03448646]
[1673757277384,0.00188432,20727.0,20726.0,3.72200796]
[1673757277655,0.00188432,20727.0,20726.0,3.03448646]
[1673757277928,0.00180843,20727.0,20726.0,3.03448646]
[1673757279700,0.00180843,20727.0,20726.0,3.33448646]
[1673757279951,0.00180843,20727.0,20726.0,2.97392768]
[1673757280229,0.00180843,20727.0,20726.0,3.45112937]
[1673757280494,0.00061049,20727.0,20726.0,3.45112937]
[1673757281257,0.00061049,20727.0,20726.0,3.15112937]
[1673757281505,0.00061049,20727.0,20726.0,3.45112937]
[1673757282502,0.00061049,20727.0,20726.0,3.62899656]
[1673757282760,0.00061049,20727.0,20726.0,3.98976173]
[1673757283287,0.00061049,20727.0,20726.0,3.51189454]
[1673757284051,0.00061049,20727.0,20726.0,3.99239498]
[1673757284303,0.00061049,20727.0,20726.0,3.51189454]
[1673757284522,0.00061049,20727.0,20726.0,3.98165472]
[1673757285558,0.00061049,20727.0,20726.0,3.92005915]
[1673757287844,0.00061049,20727.0,20726.0,4.22005915]
[1673757288334,0.00061049,20727.0,20726.0,3.51189454]
[1673757288588,0.00061049,20727.0,20726.0,3.92224089]
[1673757291014,0.00061049,20727.0,20726.0,3.51189454]
[1673757291532,0.00061049,20727.0,20726.0,3.9747013]
[1673757292557,0.00061049,20727.0,20726.0,3.45112937]
[1673757293071,0.00061049,20727.0,20726.0,3.15112937]
[1673757293326,0.00061049,20727.0,20726.0,3.45112937]
[1673757294119,0.00061049,20727.0,20726.0,3.52992937]
[1673757294387,0.00061049,20727.0,20726.0,4.37740898]
[1673757294644,0.00061049,20727.0,20726.0,4.29860898]
[1673757294891,0.0069287,20729.0,20727.0,0.1]
[1673757295139,0.0069287,20729.0,20728.0,3.84751637]
[1673757295402,0.0069287,20729.0,20728.0,4.14751637]
[1673757295648,0.0069287,20729.0,20728.0,4.04751637]
[1673757295900,0.0069287,20729.0,20728.0,3.68692348]
[1673757296209,0.0069287,20729.0,20728.0,4.04740193]
[1673757297227,0.0069287,20729.0,20728.0,4.24743483]
[1673757297801,0.0069287,20729.0,20728.0,4.53585867]
[1673757298064,0.0069287,20729.0,20728.0,4.17538022]
[1673757298862,0.0069287,20729.0,20728.0,4.53585867]
[1673757301141,0.0069287,20729.0,20728.0,3.76734732]
[1673757301444,0.00505728,20730.0,20728.0,4.56357059]
[1673757301675,0.00505728,20730.0,20729.0,1.9721308]
[1673757301919,0.00505728,20730.0,20729.0,4.75179623]
[1673757302194,0.00505728,20730.0,20729.0,3.96550116]
[1673757302426,0.00505728,20730.0,20729.0,4.39795706]
[1673757302705,0.00505728,20730.0,20729.0,4.39772506]
[1673757303200,0.00505728,20730.0,20729.0,4.84288661]
[1673757303466,0.00505728,20730.0,20729.0,4.48972506]
[1673757304055,0.00505728,20730.0,20729.0,4.39772506]
[1673757304213,0.00505728,20730.0,20729.0,4.48972506]
[1673757304470,0.00505728,20730.0,20729.0,4.8431361]
[1673757304749,0.00505728,20730.0,20729.0,4.8431363]
[1673757304986,0.00505728,20730.0,20729.0,4.48972506]
[1673757305233,0.00505728,20730.0,20729.0,4.39772506]
[1673757305512,0.00505728,20730.0,20729.0,3.64288674]
[1673757305762,0.00505728,20730.0,20729.0,6.28968796]
[1673757306271,0.00815361,20731.0,20729.0,6.28968796]
[1673757306522,0.00815361,20731.0,20730.0,3.13124307]
[1673757306774,0.00815361,20731.0,20730.0,3.96357117]
[1673757307021,0.00815361,20731.0,20730.0,4.39602707]
[1673757307522,0.00815361,20731.0,20730.0,3.5496005]
[1673757307791,0.00315361,20731.0,20730.0,3.5496005]
[1673757308290,0.00315361,20731.0,20730.0,3.6416005]
[1673757308553,0.00315361,20731.0,20730.0,3.28786648]
[1673757309329,0.00315361,20731.0,20730.0,3.64770165]
[1673757309584,0.00315361,20731.0,20730.0,3.19586648]
[1673757309850,0.00315361,20731.0,20730.0,3.28786648]
[1673757310093,0.00315361,20731.0,20730.0,3.64765888]
[1673757310354,0.00315361,20731.0,20730.0,4.12936256]
[1673757310621,0.00315361,20731.0,20730.0,3.49169109]
[1673757310848,0.00315361,20731.0,20730.0,1.74872069]
[1673757311130,0.00315361,20731.0,20730.0,1.44198569]
[1673757311391,0.00315361,20731.0,20730.0,1.91435832]
[1673757311907,0.00315361,20731.0,20730.0,2.23556732]
[1673757312428,0.00315361,20731.0,20730.0,1.91435832]
[1673757312647,0.00315361,20731.0,20730.0,2.23556732]
[1673757314654,0.00315361,20731.0,20730.0,1.91435832]
[1673757315631,0.00315361,20731.0,20730.0,2.23556732]
[1673757316335,0.00315361,20731.0,20730.0,2.3795271]
[1673757316558,0.00315361,20731.0,20730.0,2.23556732]
[1673757319373,0.00315361,20731.0,20730.0,1.91435832]
[1673757319640,0.00315361,20731.0,20730.0,2.23556732]
[1673757322791,0.00315361,20731.0,20730.0,3.46534338]
[1673757323038,0.00315361,20731.0,20730.0,3.62137541]
[1673757323590,0.00315361,20731.0,20730.0,3.90927519]
[1673757323844,0.00091944,20731.0,20730.0,3.90930595]
[1673757324386,0.00091944,20731.0,20730.0,3.69335036]
[1673757324599,0.00091944,20731.0,20730.0,3.90931681]
[1673757324862,0.00091944,20731.0,20730.0,3.69335036]
[1673757325096,0.00091944,20731.0,20730.0,3.90937613]
[1673757325317,0.00091944,20731.0,20730.0,4.05317767]
[1673757325545,0.00091944,20731.0,20730.0,3.69335036]
[1673757325985,0.00091944,20731.0,20730.0,4.05317767]
[1673757331099,0.00091944,20731.0,20730.0,3.75317767]
[1673757331348,0.00091944,20731.0,20730.0,4.05317767]
[1673757332651,0.00091944,20731.0,20730.0,4.07121407]
[1673757333160,0.00091944,20731.0,20730.0,3.78331429]
[1673757334420,0.00091944,20731.0,20730.0,3.42348698]
[1673757334967,0.00091944,20731.0,20730.0,3.78392793]
[1673757335232,0.00091944,20731.0,20730.0,3.42348698]
[1673757336754,0.00091944,20731.0,20730.0,4.28057165]
[1673757337007,3.42269311,20744.0,20733.0,0.17962]
[1673757337255,0.36098976,20741.0,20735.0,0.20502136]
[1673757337522,3.42269311,20744.0,20739.0,0.81999564]
[1673757337523,3.05719311,20744.0,20739.0,0.81999564]
[1673757337777,0.49707971,20750.0,20741.0,1.08950949]
[1673757338029,0.46791499,20749.0,20744.0,0.36590903]
[1673757338291,0.32608541,20752.0,20750.0,0.29120269]
[1673757338558,0.4036931,20751.0,20750.0,0.29120269]
[1673757338822,0.0791,20755.0,20750.0,0.29120269]
[1673757339085,0.0791,20755.0,20750.0,0.77311669]
[1673757339086,0.39050071,20752.0,20750.0,0.77311669]
[1673757339378,0.65134748,20756.0,20750.0,0.77311669]
[1673757339379,0.36791554,20753.0,20750.0,0.77311669]
[1673757339683,0.36791554,20753.0,20751.0,0.321209]
[1673757339875,0.73044748,20756.0,20751.0,0.321209]
[1673757339876,0.73044748,20756.0,20752.0,0.695933]
[1673757340133,0.65134748,20756.0,20753.0,0.321176]
[1673757340382,0.65134748,20756.0,20754.0,0.803043]
[1673757340666,0.65134748,20756.0,20755.0,0.213966]
[1673757340667,1.12163747,20756.0,20755.0,0.213966]
[1673757340895,1.12163747,20756.0,20754.0,0.481834]
[1673757341151,1.12163747,20756.0,20754.0,0.963653]
[1673757341408,0.65134748,20756.0,20755.0,0.321209]
[1673757341954,0.65134748,20756.0,20755.0,0.421209]
[1673757342286,0.65134748,20756.0,20755.0,0.721209]
[1673757342747,0.65134748,20756.0,20755.0,1.82600751]
[1673757343003,0.65134748,20756.0,20755.0,1.91800751]
[1673757343276,0.65134748,20756.0,20755.0,0.413209]
[1673757343781,0.65134748,20756.0,20755.0,1.35223318]
[1673757344560,0.65134748,20756.0,20755.0,2.31124587]
[1673757344761,0.65134748,20756.0,20755.0,2.01124587]
[1673757345017,0.65134748,20756.0,20755.0,2.31124587]
[1673757345273,0.65134748,20756.0,20755.0,1.91124587]
[1673757345519,0.65134748,20756.0,20755.0,2.21124587]
[1673757346025,0.65134748,20756.0,20755.0,1.91124587]
[1673757347278,0.65134748,20756.0,20755.0,1.91130587]
[1673757347547,0.65134748,20756.0,20755.0,1.67228169]
[1673757347811,0.65134748,20756.0,20755.0,2.28592039]
[1673757348062,0.65134748,20756.0,20755.0,2.33315457]
[1673757348331,0.65134748,20756.0,20755.0,2.61025724]
[1673757348815,0.65134748,20756.0,20755.0,2.07511854]
[1673757349563,0.65134748,20756.0,20755.0,2.36600866]
[1673757349805,0.65134748,20756.0,20755.0,2.08890599]
[1673757351113,1.27913872,20756.0,20755.0,0.89508]
[1673757351338,1.27913872,20756.0,20755.0,0.09206]
[1673757352081,0.65134748,20756.0,20755.0,6e-05]
[1673757352357,0.65234748,20756.0,20755.0,0.08506]
[1673757352613,0.65234748,20756.0,20755.0,0.085]
[1673757353611,0.65134748,20756.0,20754.0,6e-05]
[1673757353856,1.19558119,20756.0,20755.0,0.085]
[1673757354105,1.19558119,20756.0,20754.0,6e-05]
[1673757354106,1.40306143,20756.0,20754.0,6e-05]
[1673757354360,0.0783,20755.0,20754.0,6e-05]
[1673757354645,0.660111,20755.0,20754.0,6e-05]
[1673757354964,0.560111,20755.0,20754.0,6e-05]
[1673757355380,0.0783,20755.0,20754.0,6e-05]
[1673757355624,0.48790032,20755.0,20754.0,6e-05]
[1673757356615,0.001,20755.0,20754.0,0.08406]
[1673757356864,0.65134748,20756.0,20754.0,6e-05]
[1673757357111,0.63458544,20755.0,20754.0,6e-05]
[1673757357348,0.009,20755.0,20754.0,6e-05]
[1673757357610,0.59947576,20755.0,20754.0,0.09597]
[1673757357861,0.59047576,20755.0,20754.0,0.09597]
[1673757358638,0.60547576,20755.0,20754.0,6e-05]
[1673757358894,0.59047576,20755.0,20754.0,6e-05]
[1673757359688,0.59047576,20755.0,20754.0,0.09597]
[1673757360166,0.59047576,20755.0,20754.0,0.577804]
[1673757360410,0.59947576,20755.0,20754.0,0.481894]
[1673757361680,0.59947576,20755.0,20754.0,0.481834]
[1673757361948,0.65134748,20756.0,20755.0,1.12931567]
[1673757362202,0.65134748,20756.0,20755.0,2.30662636]
[1673757362451,0.65134748,20756.0,20755.0,2.78843736]
[1673757362709,0.65134748,20756.0,20755.0,3.08885022]
[1673757362960,0.65134748,20756.0,20755.0,3.08665289]
[1673757363207,0.65134748,20756.0,20755.0,3.30775289]
[1673757363506,0.65134748,20756.0,20755.0,3.94234155]
[1673757363760,0.65134748,20756.0,20755.0,3.84934155]
[1673757364008,0.65134748,20756.0,20755.0,3.94134155]
[1673757364259,0.65134748,20756.0,20755.0,3.39975289]
[1673757364533,0.65134748,20756.0,20755.0,3.10195022]
[1673757364785,0.65134748,20756.0,20755.0,3.01001022]
[1673757365119,0.65134748,20756.0,20755.0,3.10201022]
[1673757365561,0.65134748,20756.0,20755.0,2.88049736]
[1673757365820,0.65134748,20756.0,20755.0,3.47871289]
[1673757366327,0.001,20759.0,20756.0,0.1]
[1673757366587,0.001,20759.0,20757.0,2.13642269]
[1673757366846,0.001,20759.0,20758.0,1.09835969]
[1673757367106,0.001,20759.0,20758.0,1.88160896]
[1673757367694,0.001,20759.0,20758.0,2.25831163]
[1673757367910,0.01516083,20765.0,20759.0,0.1]
[1673757368167,0.01516083,20765.0,20760.0,1.29255291]
[1673757368412,0.01516083,20765.0,20761.0,0.57720169]
[1673757368699,0.01516083,20765.0,20762.0,0.963288]
[1673757368956,0.01516083,20765.0,20762.0,0.481644]
[1673757368957,0.59462885,20765.0,20762.0,0.481644]
[1673757369214,0.09406083,20765.0,20762.0,0.481644]
[1673757369481,0.66886123,20765.0,20762.0,0.481644]
[1673757369738,0.66886123,20765.0,20762.0,0.573644]
[1673757370049,0.66886123,20765.0,20762.0,0.481644]
[1673757370346,0.62929264,20764.0,20762.0,0.092]
[1673757370544,0.62929264,20764.0,20761.0,0.481669]
[1673757370798,0.62929264,20764.0,20762.0,0.092]
[1673757370799,0.82001859,20764.0,20762.0,0.092]
[1673757371057,0.62929264,20764.0,20762.0,0.092]
[1673757372107,0.62929264,20764.0,20756.0,0.51438204]
[1673757372108,0.718625,20763.0,20756.0,0.51438204]
[1673757372363,0.718625,20763.0,20761.0,0.085]
[1673757372364,0.29072595,20762.0,20761.0,0.085]
[1673757372629,1.481649,20762.0,20756.0,0.51438204]
[1673757372907,1.481649,20762.0,20753.0,0.2530895]
[1673757372908,0.19072595,20761.0,20753.0,0.0818095]
[1673757373124,0.0789,20756.0,20754.0,0.61421818]
[1673757373387,0.18572595,20755.0,20753.0,0.0818095]
[1673757373634,0.19072595,20755.0,20753.0,0.57054704]
[1673757373892,0.62658439,20756.0,20753.0,0.57054704]
[1673757374152,1.07303331,20758.0,20754.0,0.65381567]
[1673757374408,0.59127031,20758.0,20754.0,0.67866052]
[1673757374912,0.008,20756.0,20754.0,0.68566052]
[1673757375188,0.59127031,20758.0,20754.0,1.13564867]
[1673757375432,0.59127031,20758.0,20757.0,0.14333809]
[1673757375433,0.008,20758.0,20757.0,0.14333809]
[1673757375694,0.008,20758.0,20757.0,0.35726309]
[1673757375951,0.016,20758.0,20757.0,1.05403523]
[1673757376212,0.0783,20761.0,20757.0,3.36885495]
[1673757376213,0.71741112,20761.0,20757.0,3.36885495]
[1673757376481,0.008,20758.0,20757.0,1.21800966]
[1673757376729,0.0783,20761.0,20758.0,0.1]
[1673757376985,0.007,20758.0,20757.0,1.60223905]
[1673757377233,0.007,20758.0,20757.0,2.99037321]
[1673757377485,0.007,20758.0,20757.0,3.3833841]
[1673757377747,0.007,20758.0,20757.0,2.77872622]
[1673757378012,0.0783,20761.0,20757.0,3.31914929]
[1673757378283,0.0863,20761.0,20757.0,1.45236917]
[1673757378532,0.0863,20761.0,20757.0,1.46636917]
[1673757378781,0.007,20758.0,20757.0,0.69681727]
[1673757379033,0.007,20758.0,20757.0,3.00433019]
[1673757379280,0.71820968,20761.0,20757.0,2.6586254]
[1673757379530,0.72520968,20761.0,20758.0,2.56128947]
[1673757379781,0.71820968,20761.0,20758.0,1.36803137]
[1673757380302,0.62184522,20760.0,20758.0,1.36803137]
[1673757380557,0.62184522,20760.0,20758.0,1.1528986]
[1673757380806,0.62184522,20760.0,20758.0,0.6711576]
[1673757381062,0.62184522,20760.0,20757.0,0.14342185]
[1673757381314,1.29426817,20760.0,20757.0,0.14342185]
[1673757381572,0.0782,20759.0,20758.0,0.014]
[1673757381831,0.559918,20759.0,20756.0,0.16117751]
[1673757382084,0.559918,20759.0,20758.0,0.014]
[1673757382085,0.75064395,20759.0,20758.0,0.014]
[1673757382335,0.559918,20759.0,20756.0,0.01775566]
[1673757382588,0.559918,20759.0,20757.0,0.014]
[1673757383091,0.0782,20758.0,20757.0,0.014]
[1673757383598,0.0782,20758.0,20756.0,0.01775566]
[1673757383857,0.0786,20757.0,20756.0,0.03175566]
[1673757384112,0.0786,20757.0,20756.0,0.01775566]
[1673757385383,0.0856,20757.0,20756.0,0.03175566]
[1673757386162,0.69674181,20757.0,20756.0,0.03175566]
[1673757388405,0.0856,20757.0,20756.0,0.27108751]
[1673757388660,0.481673,20761.0,20757.0,0.9415844]
[1673757388661,0.67006743,20761.0,20757.0,0.9415844]
[1673757388914,0.67006743,20761.0,20758.0,0.38208036]
[1673757389176,0.57806737,20760.0,20758.0,0.16818236]
[1673757389411,0.48267776,20759.0,20757.0,2.26343817]
[1673757389670,0.48267776,20759.0,20757.0,1.56666891]
[1673757389927,0.48267776,20759.0,20757.0,1.80167517]
[1673757390440,0.48267776,20759.0,20758.0,0.321209]
[1673757390704,0.48967776,20759.0,20757.0,1.80167517]
[1673757391205,0.0782,20761.0,20757.0,2.44995995]
[1673757391470,0.47320067,20760.0,20758.0,0.02]
[1673757391740,0.47320067,20760.0,20758.0,1.17324364]
[1673757392249,0.007,20759.0,20758.0,1.17324364]
[1673757392493,0.007,20759.0,20758.0,1.31658115]
[1673757393017,0.67561455,20759.0,20757.0,1.4233314]
[1673757393251,0.4964255,20758.0,20757.0,0.9415844]
[1673757394282,0.5034255,20758.0,20757.0,0.9615844]
[1673757395291,0.5823255,20758.0,20757.0,0.9615844]
[1673757396067,1.0640665,20758.0,20757.0,0.9615844]
[1673757397141,0.6640665,20758.0,20757.0,0.9615844]
[1673757397410,0.0859,20758.0,20757.0,0.9615844]
[1673757397670,0.0859,20758.0,20757.0,1.58309182]
[1673757397934,0.0789,20760.0,20758.0,0.0789]
[1673757398451,0.0789,20760.0,20758.0,0.10374485]
[1673757398714,0.0789,20760.0,20758.0,0.0789]
[1673757398972,0.0789,20760.0,20759.0,0.65470982]
[1673757399495,0.0849,20760.0,20759.0,0.65470982]
[1673757399773,0.49235347,20761.0,20759.0,0.65470982]
[1673757399995,0.006,20760.0,20759.0,0.68170982]
[1673757401288,0.48835347,20761.0,20759.0,0.68170982]
[1673757401816,0.0782,20762.0,20759.0,0.68170982]
[1673757402099,0.61708271,20762.0,20759.0,0.68170982]
[1673757402351,0.61708271,20762.0,20759.0,0.65470982]
[1673757402599,0.005,20761.0,20759.0,0.69270982]
[1673757402850,0.49190379,20761.0,20759.0,0.65470982]
[1673757403112,0.49190379,20761.0,20759.0,0.038]
[1673757403894,0.49190379,20761.0,20758.0,0.0789]
[1673757404138,0.0789,20760.0,20759.0,0.038]
[1673757405680,0.0789,20760.0,20758.0,0.0789]
[1673757405934,0.0789,20760.0,20758.0,0.1109]
[1673757406167,0.0789,20760.0,20758.0,0.0789]
[1673757406411,0.566598,20760.0,20759.0,0.032]
[1673757406642,1.2799794,20760.0,20759.0,0.032]
[1673757406893,1.2739794,20760.0,20758.0,0.0789]
[1673757407156,0.0785,20759.0,20758.0,0.1109]
[1673757407655,0.0785,20759.0,20758.0,0.0789]
[1673757409393,0.0845,20759.0,20758.0,0.11072623]
[1673757410368,0.006,20759.0,20758.0,0.11072623]
[1673757411389,0.006,20759.0,20758.0,0.88629983]
[1673757411644,0.006,20759.0,20758.0,2.13388688]
[1673757411863,0.006,20759.0,20758.0,2.61562788]
[1673757412877,0.006,20759.0,20758.0,2.29441888]
[1673757413865,0.006,20759.0,20758.0,2.47229037]
[1673757414114,0.006,20759.0,20758.0,2.61591954]
[1673757414366,0.006,20759.0,20758.0,2.61590156]
[1673757414619,0.006,20759.0,20758.0,2.47229037]
[1673757415370,0.006,20759.0,20758.0,2.29467324]
[1673757415625,0.006,20759.0,20758.0,0.11072623]
[1673757415849,0.53090012,20761.0,20758.0,0.11072623]
[1673757416104,0.0788,20759.0,20758.0,0.11072623]
[1673757417163,0.560518,20759.0,20758.0,0.11072623]
[1673757417917,0.69121701,20759.0,20758.0,0.11072623]
[1673757421163,0.90772751,20759.0,20758.0,0.11072623]
[1673757422148,0.69121701,20759.0,20758.0,0.11072623]
[1673757424993,0.20949901,20759.0,20758.0,0.11072623]
[1673757426331,0.13069901,20759.0,20758.0,0.11072623]
[1673757428068,1.25410274,20759.0,20758.0,0.11072623]
[1673757428318,1.20470179,20759.0,20758.0,0.11072623]
[1673757428574,1.60265893,20759.0,20758.0,0.11072623]
[1673757428821,1.95542068,20759.0,20758.0,0.11072623]
[1673757429323,1.85542068,20759.0,20758.0,0.08172623]
[1673757429569,1.85542068,20759.0,20758.0,0.07872623]
[1673757429570,1.85827905,20759.0,20758.0,0.07872623]
[1673757429819,1.85827905,20759.0,20758.0,0.08172623]
[1673757429820,1.62573446,20759.0,20758.0,0.08172623]
[1673757430105,1.66141645,20759.0,20758.0,0.08172623]
[1673757430361,1.28396174,20759.0,20758.0,0.08172623]
[1673757430635,1.34705174,20759.0,20758.0,0.08172623]
[1673757431494,1.058608,20759.0,20758.0,0.08172623]
[1673757431657,1.102608,20759.0,20758.0,0.07872623]
[1673757431906,1.158608,20759.0,20758.0,0.08172623]
[1673757432172,1.102608,20759.0,20758.0,0.07872623]
[1673757432916,1.158608,20759.0,20758.0,0.08172623]
[1673757433674,1.51894541,20759.0,20758.0,0.08172623]
[1673757433902,1.6239042,20759.0,20758.0,0.08172623]
[1673757434659,1.26367601,20759.0,20758.0,0.08172623]
[1673757435179,1.62391026,20759.0,20758.0,0.08172623]
[1673757435687,1.26367601,20759.0,20758.0,0.08172623]
[1673757435945,1.62377017,20759.0,20758.0,0.08172623]
[1673757436160,1.26367601,20759.0,20758.0,0.08172623]
[1673757436643,1.62377197,20759.0,20758.0,0.08172623]
[1673757437396,1.26367601,20759.0,20758.0,0.08172623]
[1673757437905,1.62364706,20759.0,20758.0,0.08172623]
[1673757438160,1.51857869,20759.0,20758.0,0.08172623]
[1673757439185,1.51857869,20759.0,20758.0,0.08163819]
[1673757440724,1.158608,20759.0,20758.0,0.08163819]
[1673757440985,1.61294302,20759.0,20758.0,0.08163819]
[1673757441252,1.2089223,20759.0,20758.0,0.08163819]
[1673757441491,2.04436923,20759.0,20758.0,0.08163819]
[1673757441988,1.2089223,20759.0,20758.0,0.08163819]
[1673757442480,1.3858094,20759.0,20758.0,0.08163819]
[1673757442988,2.27553181,20759.0,20757.0,0.9415844]
[1673757443240,1.36716756,20758.0,20757.0,0.9415844]
[1673757443491,2.08669304,20758.0,20757.0,0.9415844]
[1673757443741,2.08669074,20758.0,20757.0,0.9415844]
[1673757443990,2.08669074,20758.0,20757.0,0.9445844]
[1673757444238,2.08669074,20758.0,20757.0,0.9415844]
[1673757444492,2.14569074,20758.0,20757.0,0.9445844]
[1673757445478,1.9837635,20758.0,20757.0,0.9445844]
[1673757446202,2.35075833,20758.0,20757.0,0.9445844]
[1673757446736,2.1348584,20758.0,20757.0,0.9445844]
[1673757446980,2.49471715,20758.0,20757.0,0.9445844]
[1673757448814,2.24953746,20758.0,20757.0,0.9445844]
[1673757449107,2.09838156,20758.0,20757.0,0.9445844]
[1673757450166,1.76786357,20758.0,20757.0,0.9445844]
[1673757450479,1.83984075,20758.0,20757.0,0.9445844]
[1673757450731,2.12764239,20758.0,20757.0,0.9445844]
[1673757450986,2.12764265,20758.0,20757.0,0.9445844]
[1673757451233,2.22838021,20758.0,20757.0,0.9445844]
[1673757451768,1.86852146,20758.0,20757.0,0.9445844]
[1673757452026,2.84265662,20758.0,20756.0,0.01775566]
[1673757452289,0.29222648,20757.0,20756.0,0.01775566]
[1673757452545,0.59222648,20757.0,20756.0,0.01775566]
[1673757452793,1.25546447,20757.0,20756.0,0.01775566]
[1673757453078,1.48921041,20757.0,20756.0,0.01775566]
[1673757453338,1.66855749,20757.0,20756.0,0.01775566]
[1673757453590,1.79133573,20757.0,20756.0,0.01775566]
[1673757453843,1.63427533,20757.0,20756.0,0.01775566]
[1673757454111,1.77167513,20757.0,20756.0,0.01775566]
[1673757454384,1.59241491,20757.0,20756.0,0.01775566]
[1673757455382,1.77169937,20757.0,20756.0,0.01775566]
[1673757455846,1.4603554,20757.0,20756.0,0.01775566]
[1673757456369,1.5234454,20757.0,20756.0,0.01775566]
[1673757457018,1.81157905,20757.0,20756.0,0.01775566]
[1673757457927,1.5234454,20757.0,20756.0,0.01775566]
[1673757459435,1.5234454,20757.0,20756.0,0.11366566]
[1673757459436,0.83074732,20757.0,20756.0,0.11366566]
[1673757459681,0.83074732,20757.0,20756.0,0.01775566]
[1673757460174,1.0469286,20757.0,20756.0,0.01775566]
[1673757460930,0.83074732,20757.0,20756.0,0.01775566]
[1673757462950,0.23511744,20757.0,20756.0,0.11366566]
[1673757463190,0.091,20757.0,20756.0,0.63581444]
[1673757464525,0.36029872,20759.0,20756.0,0.63581444]
[1673757464744,0.14411744,20759.0,20756.0,0.63581444]
[1673757464994,0.14411744,20759.0,20756.0,0.64481444]
[1673757465222,0.008,20757.0,20756.0,0.64481444]
[1673757466032,0.36029872,20759.0,20756.0,0.63581444]
[1673757466298,0.14411744,20758.0,20756.0,0.64481444]
[1673757466554,0.14411744,20758.0,20756.0,0.63581444]
[1673757466818,0.008,20757.0,20756.0,0.64481444]
[1673757467085,0.008,20757.0,20756.0,0.12266566]
[1673757467341,0.008,20757.0,20756.0,0.13166566]
[1673757467593,0.49265696,20759.0,20756.0,0.11366566]
[1673757467851,0.14411744,20758.0,20756.0,0.11366566]
[1673757468365,0.14411744,20758.0,20756.0,0.60084809]
[1673757469630,0.36029872,20758.0,20756.0,0.60084809]
[1673757469860,0.36029872,20758.0,20757.0,0.63743237]
[1673757470597,0.14411744,20758.0,20757.0,0.63743237]
[1673757470868,0.36829872,20758.0,20757.0,0.63743237]
[1673757471124,0.36029872,20758.0,20757.0,0.63743237]
[1673757471381,0.22518128,20758.0,20757.0,0.64543237]
[1673757471633,0.36938424,20758.0,20757.0,0.64543237]
[1673757472645,0.36938424,20758.0,20757.0,0.63743237]